[Event "Early-Titled-Tuesday-Blitz-August-29-2023"]
[Site "Chess.com"]
[Date "2023.08.29"]
[Round "1"]
[White "madmax011"]
[Black "Tomytoteph"]
[Result "0-1"]
[WhiteElo "2287"]
[BlackElo "2621"]
[TimeControl "180+1"]
[EndTime "8:10:33 PDT"]
[Termination "Tomytoteph won on time"]

1. d4 {[%clk 0:03:00.9]} 1... Nf6 {[%clk 0:02:59.1]} 2. c4 {[%clk 0:03:00.1]}
2... e6 {[%clk 0:02:59.3]} 3. Nc3 {[%clk 0:02:59.8]} 3... Bb4 {[%clk 0:02:59]}
4. Qc2 {[%clk 0:03:00.3]} 4... O-O {[%clk 0:02:58.2]} 5. a3 {[%clk 0:03:00.2]}
5... Bxc3+ {[%clk 0:02:58.2]} 6. Qxc3 {[%clk 0:03:01.1]} 6... d5 {[%clk
0:02:58.5]} 7. Nf3 {[%clk 0:02:55.7]} 7... c5 {[%clk 0:02:57.2]} 8. cxd5 {[%clk
0:02:53]} 8... cxd4 {[%clk 0:02:55.8]} 9. Qxd4 {[%clk 0:02:51.9]} 9... Nxd5
{[%clk 0:02:55.4]} 10. e3 {[%clk 0:02:50]} 10... Nc6 {[%clk 0:02:55.1]} 11. Qd1
{[%clk 0:02:49.3]} 11... Qf6 {[%clk 0:02:47.3]} 12. Bd3 {[%clk 0:02:47.2]} 12...
Rd8 {[%clk 0:02:43.3]} 13. Qe2 {[%clk 0:02:44.2]} 13... b6 {[%clk 0:02:33.6]}
14. O-O {[%clk 0:02:43.1]} 14... Bb7 {[%clk 0:02:33.4]} 15. e4 {[%clk
0:02:35.2]} 15... Nf4 {[%clk 0:02:31.1]} 16. Bxf4 {[%clk 0:02:34.1]} 16... Qxf4
{[%clk 0:02:32]} 17. Rfd1 {[%clk 0:02:32]} 17... Nd4 {[%clk 0:02:25.6]} 18. Nxd4
{[%clk 0:02:30.5]} 18... Rxd4 {[%clk 0:02:26.5]} 19. Bc2 {[%clk 0:02:19.1]}
19... Rad8 {[%clk 0:02:08.3]} 20. Rxd4 {[%clk 0:02:17.8]} 20... Rxd4 {[%clk
0:02:09.2]} 21. Rd1 {[%clk 0:02:16.4]} 21... Rxd1+ {[%clk 0:02:07.1]} 22. Qxd1
{[%clk 0:02:15.7]} 22... g6 {[%clk 0:02:07.3]} 23. h3 {[%clk 0:02:04.5]} 23...
e5 {[%clk 0:01:58.2]} 24. f3 {[%clk 0:01:35.2]} 24... Ba6 {[%clk 0:01:54.5]} 25.
Bb3 {[%clk 0:01:27.8]} 25... Qe3+ {[%clk 0:01:54.1]} 26. Kh1 {[%clk 0:01:27.2]}
26... Kg7 {[%clk 0:01:54.4]} 27. Qd5 {[%clk 0:01:16.1]} 27... Qc1+ {[%clk
0:01:53.9]} 28. Kh2 {[%clk 0:01:15.4]} 28... Qf4+ {[%clk 0:01:54.8]} 29. Kh1
{[%clk 0:01:14.8]} 29... Be2 {[%clk 0:01:49.3]} 30. Ba2 {[%clk 0:01:03.3]} 30...
h5 {[%clk 0:01:44.3]} 31. Qb3 {[%clk 0:00:58.4]} 31... b5 {[%clk 0:01:41.2]} 32.
Qc2 {[%clk 0:00:50.9]} 32... Qe3 {[%clk 0:01:33]} 33. b4 {[%clk 0:00:37.2]}
33... Bf1 {[%clk 0:01:16.3]} 34. Qc7 {[%clk 0:00:25.7]} 34... Bxg2+ {[%clk
0:01:05.3]} 35. Kxg2 {[%clk 0:00:24.1]} 35... Qe2+ {[%clk 0:01:05.7]} 36. Kg1
{[%clk 0:00:17.3]} 36... Qxa2 {[%clk 0:01:02.6]} 37. Qxe5+ {[%clk 0:00:17.4]}
37... Kh7 {[%clk 0:01:02.9]} 38. Qxb5 {[%clk 0:00:17.5]} 38... Qxa3 {[%clk
0:01:02.8]} 39. Kg2 {[%clk 0:00:14.3]} 39... Qb2+ {[%clk 0:01:02.4]} 40. Kg3
{[%clk 0:00:14.4]} 40... Qf6 {[%clk 0:01:00.1]} 41. Qd5 {[%clk 0:00:12.7]} 41...
h4+ {[%clk 0:01:00.2]} 42. Kg2 {[%clk 0:00:12.4]} 42... Kg7 {[%clk 0:01:00.9]}
43. e5 {[%clk 0:00:12.4]} 43... Qg5+ {[%clk 0:01:00.8]} 44. Kf2 {[%clk
0:00:11.9]} 44... Qg3+ {[%clk 0:01:01.4]} 45. Ke2 {[%clk 0:00:12.3]} 45... Qxh3
{[%clk 0:01:02.3]} 46. Qd4 {[%clk 0:00:11.4]} 46... Qg2+ {[%clk 0:01:01.8]} 47.
Ke1 {[%clk 0:00:10.9]} 47... Qg3+ {[%clk 0:00:59.7]} 48. Ke2 {[%clk 0:00:10.8]}
48... Kg8 {[%clk 0:00:59.7]} 49. Qd8+ {[%clk 0:00:10.3]} 49... Kh7 {[%clk
0:00:59.4]} 50. Qe7 {[%clk 0:00:10.4]} 50... Qh2+ {[%clk 0:00:56.3]} 51. Ke3
{[%clk 0:00:10.3]} 51... Qg1+ {[%clk 0:00:56]} 52. Ke2 {[%clk 0:00:09.7]} 52...
h3 {[%clk 0:00:36.5]} 53. Qxf7+ {[%clk 0:00:09.4]} 53... Kh6 {[%clk 0:00:37.1]}
54. Qf8+ {[%clk 0:00:08]} 54... Kg5 {[%clk 0:00:37.3]} 55. Qf6+ {[%clk
0:00:08.3]} 55... Kh5 {[%clk 0:00:37.8]} 56. Qh8+ {[%clk 0:00:08.3]} 56... Kg5
{[%clk 0:00:37.2]} 57. Qf6+ {[%clk 0:00:08.3]} 57... Kh6 {[%clk 0:00:37.5]} 58.
Qh8+ {[%clk 0:00:07.1]} 58... Kg5 {[%clk 0:00:38]} 59. Qxh3 {[%clk 0:00:06.4]}
59... Qb1 {[%clk 0:00:33.4]} 60. Qg4+ {[%clk 0:00:05.7]} 60... Kh6 {[%clk
0:00:34]} 61. Qh4+ {[%clk 0:00:05.6]} 61... Kg7 {[%clk 0:00:34.6]} 62. Qe7+
{[%clk 0:00:05.7]} 62... Kh6 {[%clk 0:00:34.6]} 63. Qc5 {[%clk 0:00:05.7]} 63...
a6 {[%clk 0:00:31.4]} 64. Qe3+ {[%clk 0:00:04.4]} 64... Kg7 {[%clk 0:00:29.7]}
65. Qa7+ {[%clk 0:00:03.8]} 65... Kh6 {[%clk 0:00:29.7]} 66. Qc5 {[%clk
0:00:03.8]} 66... Qa2+ {[%clk 0:00:29.5]} 67. Ke3 {[%clk 0:00:03.4]} 67... g5
{[%clk 0:00:28.6]} 68. Qd6+ {[%clk 0:00:03.3]} 68... Kh5 {[%clk 0:00:29.1]} 69.
e6 {[%clk 0:00:03.8]} 69... Qb3+ {[%clk 0:00:28.7]} 70. Ke4 {[%clk 0:00:04.3]}
70... Qc2+ {[%clk 0:00:28.3]} 71. Ke3 {[%clk 0:00:04.7]} 71... Qc3+ {[%clk
0:00:28.3]} 72. Ke4 {[%clk 0:00:05.2]} 72... Qe1+ {[%clk 0:00:26.2]} 73. Kf5
{[%clk 0:00:05.6]} 73... Qb1+ {[%clk 0:00:25.2]} 74. Kf6 {[%clk 0:00:06.1]}
74... Qg6+ {[%clk 0:00:21.6]} 75. Ke5 {[%clk 0:00:06.4]} 75... Qg7+ {[%clk
0:00:21.8]} 76. Kd5 {[%clk 0:00:06.4]} 76... Qg8 {[%clk 0:00:20.6]} 77. Kc6
{[%clk 0:00:06]} 77... Qa8+ {[%clk 0:00:19.9]} 78. Kc5 {[%clk 0:00:05.3]} 78...
Qxf3 {[%clk 0:00:20.4]} 79. e7 {[%clk 0:00:05.2]} 79... Qc3+ {[%clk 0:00:21]}
80. Kd5 {[%clk 0:00:05.4]} 80... Qd3+ {[%clk 0:00:21.2]} 81. Kc6 {[%clk
0:00:05.8]} 81... Qb5+ {[%clk 0:00:21.2]} 82. Kc7 {[%clk 0:00:06.1]} 82... g4
{[%clk 0:00:21.5]} 83. Qh2+ {[%clk 0:00:03.9]} 83... Kg5 {[%clk 0:00:21.7]} 84.
Qd6 {[%clk 0:00:04.2]} 84... Kh4 {[%clk 0:00:19.5]} 85. Qc5 {[%clk 0:00:04.3]}
85... Qe8 {[%clk 0:00:19.2]} 86. Kd6 {[%clk 0:00:03.9]} 86... g3 {[%clk
0:00:19.3]} 87. Qd4+ {[%clk 0:00:03.3]} 87... Kh3 {[%clk 0:00:19.4]} 88. Qd3
{[%clk 0:00:02.8]} 88... Kh2 {[%clk 0:00:18.7]} 89. Qh7+ {[%clk 0:00:01.6]}
89... Kg1 {[%clk 0:00:19]} 90. Qc2 {[%clk 0:00:02.4]} 90... g2 {[%clk
0:00:18.9]} 91. Qd1+ {[%clk 0:00:03.1]} 91... Kh2 {[%clk 0:00:19.3]} 92. Qe2
{[%clk 0:00:02.6]} 92... Qb8+ {[%clk 0:00:19]} 93. Kd7 {[%clk 0:00:02.7]} 93...
Qb7+ {[%clk 0:00:19.3]} 94. Kd8 {[%clk 0:00:02.8]} 94... Qb6+ {[%clk 0:00:19.4]}
95. Kd7 {[%clk 0:00:03.2]} 95... Qd4+ {[%clk 0:00:19.2]} 96. Kc8 {[%clk
0:00:03.2]} 96... Qc3+ {[%clk 0:00:19.1]} 97. Kd8 {[%clk 0:00:03.5]} 97... Qf6
{[%clk 0:00:18.7]} 98. Qd2 {[%clk 0:00:02.1]} 98... Kh1 {[%clk 0:00:18.1]} 99.
Kd7 {[%clk 0:00:02.1]} 99... Qf5+ {[%clk 0:00:18.1]} 100. Kd8 {[%clk 0:00:02.4]}
100... Qf6 {[%clk 0:00:16]} 101. Kd7 {[%clk 0:00:02.5]} 101... g1=Q {[%clk
0:00:14.2]} 102. e8=Q {[%clk 0:00:02.9]} 102... Qa7+ {[%clk 0:00:14.7]} 103. Kc8
{[%clk 0:00:02.6]} 103... Qa8+ {[%clk 0:00:14.1]} 104. Kd7 {[%clk 0:00:02.9]}
104... Qf5+ {[%clk 0:00:14.4]} 105. Ke7 {[%clk 0:00:03.1]} 105... Qae4+ {[%clk
0:00:14.1]} 106. Kd6 {[%clk 0:00:02.3]} 106... Qxe8 {[%clk 0:00:13.7]} 107. Qc1+
{[%clk 0:00:02.7]} 107... Kg2 {[%clk 0:00:13.5]} 108. Qd2+ {[%clk 0:00:02.5]}
108... Kh3 {[%clk 0:00:14]} 109. Qc3+ {[%clk 0:00:02.3]} 109... Kg4 {[%clk
0:00:14.1]} 110. Qd4+ {[%clk 0:00:02.5]} 110... Qf4+ {[%clk 0:00:14.5]} 0-1

[Event "Early-Titled-Tuesday-Blitz-August-29-2023"]
[Site "Chess.com"]
[Date "2023.08.29"]
[Round "2"]
[White "Dmitry_Konenkin"]
[Black "Djager97"]
[Result "0-1"]
[WhiteElo "2382"]
[BlackElo "2607"]
[TimeControl "180+1"]
[EndTime "8:12:31 PDT"]
[Termination "Djager97 won by resignation"]

1. d4 {[%clk 0:03:00.9]} 1... d5 {[%clk 0:02:59.5]} 2. Nc3 {[%clk 0:02:59.8]}
2... Nf6 {[%clk 0:02:59.2]} 3. Bf4 {[%clk 0:02:59.9]} 3... a6 {[%clk 0:02:59.7]}
4. e3 {[%clk 0:02:59]} 4... e6 {[%clk 0:03:00.3]} 5. Bd3 {[%clk 0:02:57.6]} 5...
c5 {[%clk 0:02:59.3]} 6. Qf3 {[%clk 0:02:52.4]} 6... Nc6 {[%clk 0:02:56.5]} 7.
g4 {[%clk 0:02:42]} 7... c4 {[%clk 0:02:55.3]} 8. Be2 {[%clk 0:02:41.7]} 8...
Bb4 {[%clk 0:02:53.8]} 9. Bg5 {[%clk 0:02:36.2]} 9... h6 {[%clk 0:02:45.5]} 10.
Bh4 {[%clk 0:02:11.4]} 10... g5 {[%clk 0:02:45.2]} 11. Bg3 {[%clk 0:02:11.4]}
11... Ne4 {[%clk 0:02:45.9]} 12. Kf1 {[%clk 0:02:12.1]} 12... Nd2+ {[%clk
0:02:43.2]} 0-1

[Event "Early-Titled-Tuesday-Blitz-August-29-2023"]
[Site "Chess.com"]
[Date "2023.08.29"]
[Round "2"]
[White "salzikis"]
[Black "skkeyan1309"]
[Result "0-1"]
[WhiteElo "2409"]
[BlackElo "2682"]
[TimeControl "180+1"]
[EndTime "8:13:39 PDT"]
[Termination "skkeyan1309 won by resignation"]

1. e4 {[%clk 0:03:00.9]} 1... c5 {[%clk 0:02:59.4]} 2. Nf3 {[%clk 0:03:00]} 2...
d6 {[%clk 0:02:56.6]} 3. Bc4 {[%clk 0:03:00]} 3... Nc6 {[%clk 0:02:55.6]} 4. c3
{[%clk 0:02:58.7]} 4... Nf6 {[%clk 0:02:55]} 5. d3 {[%clk 0:02:59.1]} 5... g6
{[%clk 0:02:52.5]} 6. O-O {[%clk 0:02:58.5]} 6... Bg7 {[%clk 0:02:52.9]} 7. h3
{[%clk 0:02:59]} 7... O-O {[%clk 0:02:52.6]} 8. Re1 {[%clk 0:02:59.6]} 8... Na5
{[%clk 0:02:44.3]} 9. Bb5 {[%clk 0:02:58.4]} 9... a6 {[%clk 0:02:44.5]} 10. Ba4
{[%clk 0:02:58.5]} 10... b5 {[%clk 0:02:45.2]} 11. Bc2 {[%clk 0:02:58.8]} 11...
Bb7 {[%clk 0:02:45.7]} 12. d4 {[%clk 0:02:59.2]} 12... cxd4 {[%clk 0:02:45.8]}
13. cxd4 {[%clk 0:02:59.2]} 13... Rc8 {[%clk 0:02:39]} 14. Bd2 {[%clk
0:02:47.7]} 14... Nc4 {[%clk 0:02:37.2]} 15. Bc3 {[%clk 0:02:47.9]} 15... d5
{[%clk 0:02:33.9]} 16. e5 {[%clk 0:02:40.1]} 16... Ne4 {[%clk 0:02:34]} 17. Bxe4
{[%clk 0:02:26.3]} 17... dxe4 {[%clk 0:02:33]} 18. Nfd2 {[%clk 0:02:27]} 18...
b4 {[%clk 0:02:14.6]} 19. Bxb4 {[%clk 0:02:27]} 19... Nxb2 {[%clk 0:02:14.3]}
20. Qb3 {[%clk 0:02:03.3]} 20... Nd3 {[%clk 0:02:11.3]} 21. Rc1 {[%clk
0:02:03.4]} 21... Rxc1+ {[%clk 0:02:10.1]} 0-1

[Event "Early-Titled-Tuesday-Blitz-August-29-2023"]
[Site "Chess.com"]
[Date "2023.08.29"]
[Round "2"]
[White "XDPS"]
[Black "realburq"]
[Result "1-0"]
[WhiteElo "2855"]
[BlackElo "2423"]
[TimeControl "180+1"]
[EndTime "8:14:06 PDT"]
[Termination "XDPS won by resignation"]

1. d4 {[%clk 0:03:00.9]} 1... Nf6 {[%clk 0:02:56.4]} 2. c4 {[%clk 0:03:01.5]}
2... e6 {[%clk 0:02:56.2]} 3. Nc3 {[%clk 0:03:02.2]} 3... Bb4 {[%clk 0:02:55.5]}
4. e3 {[%clk 0:03:00.1]} 4... O-O {[%clk 0:02:55.1]} 5. Bd3 {[%clk 0:03:00.9]}
5... Re8 {[%clk 0:02:54.9]} 6. Nf3 {[%clk 0:03:00]} 6... Bxc3+ {[%clk 0:02:40]}
7. bxc3 {[%clk 0:02:59.9]} 7... d6 {[%clk 0:02:40.7]} 8. e4 {[%clk 0:02:59]}
8... e5 {[%clk 0:02:40.2]} 9. h3 {[%clk 0:02:59.2]} 9... a5 {[%clk 0:02:38.9]}
10. O-O {[%clk 0:02:59.1]} 10... Nc6 {[%clk 0:02:35.1]} 11. Re1 {[%clk
0:02:56.9]} 11... b6 {[%clk 0:02:25.9]} 12. Bg5 {[%clk 0:02:53]} 12... h6 {[%clk
0:02:25.8]} 13. Bh4 {[%clk 0:02:52.9]} 13... Ba6 {[%clk 0:02:22.7]} 14. Rb1
{[%clk 0:02:50.1]} 14... g5 {[%clk 0:01:45.1]} 15. Nxg5 {[%clk 0:02:49.8]} 15...
hxg5 {[%clk 0:01:41.5]} 16. Bxg5 {[%clk 0:02:50.7]} 16... exd4 {[%clk
0:01:41.9]} 17. Qf3 {[%clk 0:02:44]} 17... Ne5 {[%clk 0:01:36.7]} 18. Qg3 {[%clk
0:02:42.4]} 18... Ng6 {[%clk 0:01:07.9]} 19. cxd4 {[%clk 0:02:40.6]} 19... Nh5
{[%clk 0:01:03.2]} 20. Qe3 {[%clk 0:02:39.8]} 20... Ng7 {[%clk 0:01:00.2]} 21.
Bxd8 {[%clk 0:02:39.5]} 1-0

[Event "Early-Titled-Tuesday-Blitz-August-29-2023"]
[Site "Chess.com"]
[Date "2023.08.29"]
[Round "2"]
[White "DawidCzerw"]
[Black "cristiano78"]
[Result "1-0"]
[WhiteElo "2479"]
[BlackElo "2232"]
[TimeControl "180+1"]
[EndTime "8:14:12 PDT"]
[Termination "DawidCzerw won by resignation"]

1. e4 {[%clk 0:03:00.9]} 1... c5 {[%clk 0:02:59.4]} 2. Nf3 {[%clk 0:03:01]} 2...
d6 {[%clk 0:02:59.2]} 3. d4 {[%clk 0:03:01.1]} 3... cxd4 {[%clk 0:02:59.6]} 4.
Nxd4 {[%clk 0:03:02]} 4... Nf6 {[%clk 0:02:59.8]} 5. Nc3 {[%clk 0:03:02.5]} 5...
g6 {[%clk 0:02:59.5]} 6. Be3 {[%clk 0:03:01]} 6... Bg7 {[%clk 0:02:59.6]} 7. f3
{[%clk 0:03:01.4]} 7... O-O {[%clk 0:03:00]} 8. Bc4 {[%clk 0:03:01.8]} 8... Nc6
{[%clk 0:03:00.9]} 9. Qd2 {[%clk 0:03:02.1]} 9... Bd7 {[%clk 0:03:00.8]} 10.
O-O-O {[%clk 0:03:02.6]} 10... Rc8 {[%clk 0:03:01.2]} 11. Bb3 {[%clk 0:03:03.3]}
11... Ne5 {[%clk 0:03:01.6]} 12. h4 {[%clk 0:02:55.3]} 12... h5 {[%clk
0:03:00.7]} 13. Bh6 {[%clk 0:02:48.4]} 13... Nc4 {[%clk 0:03:00.1]} 14. Bxc4
{[%clk 0:02:47.6]} 14... Rxc4 {[%clk 0:02:59.2]} 15. Bxg7 {[%clk 0:02:48]} 15...
Kxg7 {[%clk 0:02:58.9]} 16. Nd5 {[%clk 0:02:44]} 16... e6 {[%clk 0:02:52.3]} 17.
Ne3 {[%clk 0:02:38.1]} 17... Ra4 {[%clk 0:02:46.5]} 18. Kb1 {[%clk 0:02:32.5]}
18... e5 {[%clk 0:02:42.3]} 19. Nb3 {[%clk 0:02:27.7]} 19... Be6 {[%clk
0:02:41.9]} 20. Qxd6 {[%clk 0:02:21.1]} 20... Qxd6 {[%clk 0:02:32.2]} 21. Rxd6
{[%clk 0:02:22]} 21... Rc8 {[%clk 0:02:30.1]} 22. Rhd1 {[%clk 0:02:16.7]} 22...
Rb4 {[%clk 0:02:21.1]} 23. Rd8 {[%clk 0:02:01.4]} 23... Rc6 {[%clk 0:02:15.8]}
24. Nd5 {[%clk 0:01:48.7]} 24... Ra6 {[%clk 0:01:56.7]} 25. Nxb4 {[%clk
0:01:46.7]} 1-0

[Event "Early-Titled-Tuesday-Blitz-August-29-2023"]
[Site "Chess.com"]
[Date "2023.08.29"]
[Round "2"]
[White "thedjoker98"]
[Black "Durarbayli"]
[Result "0-1"]
[WhiteElo "2579"]
[BlackElo "2893"]
[TimeControl "180+1"]
[EndTime "8:14:15 PDT"]
[Termination "Durarbayli won by resignation"]

1. d4 {[%clk 0:03:00.9]} 1... Nf6 {[%clk 0:02:59.1]} 2. c4 {[%clk 0:03:01.1]}
2... e6 {[%clk 0:02:59.5]} 3. Nc3 {[%clk 0:03:01.7]} 3... Bb4 {[%clk 0:02:58.9]}
4. g3 {[%clk 0:03:02.3]} 4... c5 {[%clk 0:02:55.3]} 5. Nf3 {[%clk 0:03:02.1]}
5... cxd4 {[%clk 0:02:48.4]} 6. Nxd4 {[%clk 0:03:03]} 6... Ne4 {[%clk
0:02:48.6]} 7. Qd3 {[%clk 0:03:02.6]} 7... Nxc3 {[%clk 0:02:48.4]} 8. bxc3
{[%clk 0:03:03.5]} 8... Be7 {[%clk 0:02:48.1]} 9. Bg2 {[%clk 0:03:03.2]} 9... d6
{[%clk 0:02:46.5]} 10. O-O {[%clk 0:03:03.1]} 10... a6 {[%clk 0:02:47]} 11. Rd1
{[%clk 0:03:00.9]} 11... Nd7 {[%clk 0:02:44.2]} 12. Ba3 {[%clk 0:02:56.2]} 12...
Qc7 {[%clk 0:02:25.5]} 13. Nb3 {[%clk 0:02:50.7]} 13... Ne5 {[%clk 0:02:23]} 14.
Bxd6 {[%clk 0:02:50.4]} 14... Bxd6 {[%clk 0:02:18.2]} 15. Qxd6 {[%clk
0:02:50.3]} 15... Qxd6 {[%clk 0:02:18.7]} 16. Rxd6 {[%clk 0:02:50.1]} 16... Nxc4
{[%clk 0:02:17.9]} 17. Rd4 {[%clk 0:02:45.9]} 17... Ne5 {[%clk 0:02:09.7]} 18.
Na5 {[%clk 0:02:40.9]} 18... Ra7 {[%clk 0:01:58.4]} 19. Rb1 {[%clk 0:02:38.2]}
19... b5 {[%clk 0:01:40]} 20. a4 {[%clk 0:02:34.8]} 20... bxa4 {[%clk 0:01:33]}
21. f4 {[%clk 0:02:28.6]} 21... Nd7 {[%clk 0:01:31.3]} 22. Rc4 {[%clk
0:02:25.5]} 22... O-O {[%clk 0:01:19.2]} 23. Rb8 {[%clk 0:02:24.7]} 23... Nxb8
{[%clk 0:01:16]} 0-1

[Event "Early-Titled-Tuesday-Blitz-August-29-2023"]
[Site "Chess.com"]
[Date "2023.08.29"]
[Round "2"]
[White "queen_iryna"]
[Black "Grossboss19"]
[Result "0-1"]
[WhiteElo "2342"]
[BlackElo "2524"]
[TimeControl "180+1"]
[EndTime "8:14:20 PDT"]
[Termination "Grossboss19 won by checkmate"]

1. e4 {[%clk 0:02:58.8]} 1... c5 {[%clk 0:03:00.9]} 2. Nf3 {[%clk 0:02:55.8]}
2... Nc6 {[%clk 0:03:00.4]} 3. Bb5 {[%clk 0:02:55.6]} 3... e6 {[%clk 0:03:00.5]}
4. Bxc6 {[%clk 0:02:53.8]} 4... bxc6 {[%clk 0:03:00.4]} 5. O-O {[%clk
0:02:54.7]} 5... d6 {[%clk 0:02:57.1]} 6. b3 {[%clk 0:02:52.4]} 6... Ne7 {[%clk
0:02:52.7]} 7. Bb2 {[%clk 0:02:52.2]} 7... Ng6 {[%clk 0:02:52.1]} 8. e5 {[%clk
0:02:50.6]} 8... d5 {[%clk 0:02:49.8]} 9. d3 {[%clk 0:02:49.3]} 9... Be7 {[%clk
0:02:48.7]} 10. c4 {[%clk 0:02:49.2]} 10... O-O {[%clk 0:02:44.7]} 11. Nc3
{[%clk 0:02:49.1]} 11... f5 {[%clk 0:02:32]} 12. Na4 {[%clk 0:02:47.3]} 12...
Rf7 {[%clk 0:02:24.5]} 13. Ba3 {[%clk 0:02:45.8]} 13... Qf8 {[%clk 0:02:23.5]}
14. Re1 {[%clk 0:02:42.5]} 14... Nh8 {[%clk 0:02:15.8]} 15. h4 {[%clk
0:02:35.2]} 15... Ng6 {[%clk 0:02:04.8]} 16. Ng5 {[%clk 0:02:34.9]} 16... Bxg5
{[%clk 0:02:02.9]} 17. hxg5 {[%clk 0:02:35.8]} 17... Qd8 {[%clk 0:02:01.4]} 18.
Qd2 {[%clk 0:02:32]} 18... f4 {[%clk 0:01:59.7]} 19. Bxc5 {[%clk 0:02:17.4]}
19... Qxg5 {[%clk 0:01:56.8]} 20. Bd6 {[%clk 0:02:15.8]} 20... Nh4 {[%clk
0:01:51.7]} 21. Kf1 {[%clk 0:02:09.1]} 21... Qxg2+ {[%clk 0:01:49.8]} 22. Ke2
{[%clk 0:02:08]} 22... Qg4+ {[%clk 0:01:48.4]} 23. Kf1 {[%clk 0:02:07.7]} 23...
f3 {[%clk 0:01:43.2]} 24. Re3 {[%clk 0:01:51.1]} 24... Qg2+ {[%clk 0:01:39.3]}
25. Ke1 {[%clk 0:01:52]} 25... Qg1# {[%clk 0:01:40.2]} 0-1

[Event "Early-Titled-Tuesday-Blitz-August-29-2023"]
[Site "Chess.com"]
[Date "2023.08.29"]
[Round "2"]
[White "A-Fier"]
[Black "GM4life"]
[Result "0-1"]
[WhiteElo "2790"]
[BlackElo "2518"]
[TimeControl "180+1"]
[EndTime "8:14:33 PDT"]
[Termination "GM4life won by resignation"]

1. e4 {[%clk 0:02:11.3]} 1... c5 {[%clk 0:03:00]} 2. Nf3 {[%clk 0:02:10.3]} 2...
d6 {[%clk 0:03:00.5]} 3. d4 {[%clk 0:02:10.1]} 3... cxd4 {[%clk 0:03:01.4]} 4.
Nxd4 {[%clk 0:02:09.9]} 4... Nf6 {[%clk 0:03:02.3]} 5. Nc3 {[%clk 0:02:09.1]}
5... a6 {[%clk 0:03:03]} 6. Bg5 {[%clk 0:02:09.4]} 6... e6 {[%clk 0:03:03.2]} 7.
f4 {[%clk 0:02:08.2]} 7... Be7 {[%clk 0:03:03.3]} 8. Qf3 {[%clk 0:02:07.8]} 8...
h6 {[%clk 0:03:02.1]} 9. Bh4 {[%clk 0:02:07.4]} 9... Qc7 {[%clk 0:03:02.7]} 10.
O-O-O {[%clk 0:02:07]} 10... Nbd7 {[%clk 0:03:03.2]} 11. Be2 {[%clk 0:02:07.1]}
11... Rb8 {[%clk 0:03:01.3]} 12. Qg3 {[%clk 0:02:02.4]} 12... O-O {[%clk
0:02:52.4]} 13. Rhf1 {[%clk 0:02:00.9]} 13... b5 {[%clk 0:02:51.5]} 14. f5
{[%clk 0:01:55]} 14... Ne5 {[%clk 0:02:49.8]} 15. Nf3 {[%clk 0:01:49.3]} 15...
b4 {[%clk 0:02:47.9]} 16. Nxe5 {[%clk 0:01:47.8]} 16... dxe5 {[%clk 0:02:48.3]}
17. Bxf6 {[%clk 0:01:47.4]} 17... Bxf6 {[%clk 0:02:47.7]} 18. Nb1 {[%clk
0:01:46.9]} 18... exf5 {[%clk 0:02:45.9]} 19. Bd3 {[%clk 0:01:46]} 19... f4
{[%clk 0:02:45.3]} 20. Qf2 {[%clk 0:01:45.3]} 20... Bg4 {[%clk 0:02:43.2]} 21.
Be2 {[%clk 0:01:43.7]} 21... Be6 {[%clk 0:02:38]} 22. b3 {[%clk 0:01:39.1]}
22... Rfc8 {[%clk 0:02:37.4]} 23. Bd3 {[%clk 0:01:39.3]} 23... a5 {[%clk
0:02:34.4]} 24. Nd2 {[%clk 0:01:36.9]} 24... Qc3 {[%clk 0:02:33.1]} 25. Kb1
{[%clk 0:01:37.3]} 25... a4 {[%clk 0:02:32.1]} 26. bxa4 {[%clk 0:01:36.8]} 26...
Ra8 {[%clk 0:02:22.7]} 27. Nb3 {[%clk 0:01:37]} 27... Rxa4 {[%clk 0:02:20.3]}
28. Bb5 {[%clk 0:01:35.4]} 28... Rxa2 {[%clk 0:01:59.5]} 0-1

[Event "Early-Titled-Tuesday-Blitz-August-29-2023"]
[Site "Chess.com"]
[Date "2023.08.29"]
[Round "2"]
[White "Casper"]
[Black "GianmarcoVaR"]
[Result "0-1"]
[WhiteElo "2414"]
[BlackElo "2749"]
[TimeControl "180+1"]
[EndTime "8:14:35 PDT"]
[Termination "GianmarcoVaR won by resignation"]

1. e4 {[%clk 0:02:57.9]} 1... c5 {[%clk 0:02:36.3]} 2. d4 {[%clk 0:02:57.3]}
2... cxd4 {[%clk 0:02:34.8]} 3. Qxd4 {[%clk 0:02:58.1]} 3... Nc6 {[%clk
0:02:33.6]} 4. Qe3 {[%clk 0:02:58.5]} 4... Nf6 {[%clk 0:02:29.8]} 5. Nc3 {[%clk
0:02:58.6]} 5... d6 {[%clk 0:02:19.8]} 6. Bd2 {[%clk 0:02:58.5]} 6... e6 {[%clk
0:02:18.7]} 7. O-O-O {[%clk 0:02:58.2]} 7... Be7 {[%clk 0:02:18.2]} 8. h4 {[%clk
0:02:57.3]} 8... a6 {[%clk 0:02:16.1]} 9. h5 {[%clk 0:02:57.2]} 9... b5 {[%clk
0:02:13]} 10. h6 {[%clk 0:02:56.6]} 10... g6 {[%clk 0:02:13.2]} 11. Kb1 {[%clk
0:02:46.4]} 11... b4 {[%clk 0:02:10.5]} 12. Nce2 {[%clk 0:02:43.8]} 12... Qc7
{[%clk 0:01:57.9]} 13. f3 {[%clk 0:02:38]} 13... d5 {[%clk 0:01:54.2]} 14. Nd4
{[%clk 0:02:06.9]} 14... dxe4 {[%clk 0:01:45.4]} 15. Bc4 {[%clk 0:01:33.8]}
15... Nxd4 {[%clk 0:01:37]} 16. Qxd4 {[%clk 0:01:33.5]} 16... e5 {[%clk
0:01:37.8]} 0-1

[Event "Early-Titled-Tuesday-Blitz-August-29-2023"]
[Site "Chess.com"]
[Date "2023.08.29"]
[Round "2"]
[White "tk22h"]
[Black "GroovyKettle"]
[Result "0-1"]
[WhiteElo "2491"]
[BlackElo "2901"]
[TimeControl "180+1"]
[EndTime "8:14:44 PDT"]
[Termination "GroovyKettle won by resignation"]

1. c4 {[%clk 0:03:00.9]} 1... e5 {[%clk 0:02:57.1]} 2. Nc3 {[%clk 0:03:00.3]}
2... Nf6 {[%clk 0:02:52.6]} 3. Nf3 {[%clk 0:02:59.9]} 3... Nc6 {[%clk
0:02:52.9]} 4. g3 {[%clk 0:02:59.9]} 4... Bb4 {[%clk 0:02:50.9]} 5. Bg2 {[%clk
0:02:59.5]} 5... O-O {[%clk 0:02:51.2]} 6. O-O {[%clk 0:02:59.1]} 6... d6 {[%clk
0:02:51]} 7. Nd5 {[%clk 0:02:58.5]} 7... Nxd5 {[%clk 0:02:49.5]} 8. cxd5 {[%clk
0:02:58.3]} 8... Ne7 {[%clk 0:02:50.2]} 9. e4 {[%clk 0:02:58.5]} 9... f5 {[%clk
0:02:47.4]} 10. a3 {[%clk 0:02:48.9]} 10... Bc5 {[%clk 0:02:46.5]} 11. d3 {[%clk
0:02:47.9]} 11... Qe8 {[%clk 0:02:31.9]} 12. Qc2 {[%clk 0:02:47.7]} 12... Qh5
{[%clk 0:02:27.9]} 13. Nxe5 {[%clk 0:02:44.6]} 13... fxe4 {[%clk 0:02:23.5]} 14.
Nc4 {[%clk 0:02:32.7]} 14... exd3 {[%clk 0:02:19.5]} 15. Qxd3 {[%clk 0:02:32.9]}
15... Bg4 {[%clk 0:02:20.3]} 16. Qe4 {[%clk 0:02:14.2]} 16... Be2 {[%clk
0:01:53.5]} 17. Qe6+ {[%clk 0:02:07.1]} 17... Kh8 {[%clk 0:01:53.3]} 18. Be3
{[%clk 0:02:01.2]} 18... Bxc4 {[%clk 0:01:48.1]} 19. Bxc5 {[%clk 0:02:00.1]}
19... Bxf1 {[%clk 0:01:29.3]} 20. Rxf1 {[%clk 0:02:01]} 20... Rae8 {[%clk
0:01:25.7]} 21. Bd4 {[%clk 0:01:53.9]} 21... Nf5 {[%clk 0:01:24.9]} 0-1